fUSD/lending_fUSD_20260423
["ID","MTS","AMOUNT","RATE_DAILY","PERIOD"]
[421011650,1776921039972,-591.07158026,6.998e-05,2]
[421011651,1776921039983,-644.38,6.998e-05,2]
[421011652,1776921039995,-1708.82847112,6.998e-05,2]
[421011653,1776921040007,-3057.87518701,6.998e-05,2]
[421011654,1776921040017,-1887.937767,6.998e-05,2]
[421011655,1776921040026,-25779.3405022,6.998e-05,2]
[421011656,1776921040035,-212.04139886,6.998e-05,2]
[421011657,1776921040044,-1543.7258936,6.998e-05,2]
[421011658,1776921040054,-1532.0,6.998e-05,2]
[421011659,1776921040063,-1532.0,6.998e-05,2]
[421011660,1776921040072,-242.156,6.999e-05,2]
[421011661,1776921040082,-346.57282793,6.999e-05,2]
[421011662,1776921040091,-215.31396185,6.999e-05,2]
[421011663,1776921040100,-150.71977329,6.999e-05,2]
[421011664,1776921040109,-500.0,6.999e-05,2]
[421011665,1776921040119,-500.0,6.999e-05,2]
[421011666,1776921040128,-500.0,6.999e-05,2]
[421011667,1776921040137,-500.0,6.999e-05,2]
[421011668,1776921040146,-500.0,6.999e-05,2]
[421011669,1776921040155,-255.49751341,6.999e-05,2]
[421011670,1776921040165,-895.0,7e-05,5]
[421011671,1776921040174,-112261.79522119,7e-05,2]
[421011672,1776921040200,-2510.73356464,7e-05,2]
[421011694,1776921042777,-648.92043422,7e-05,2]
[421011695,1776921042934,-661.24,7e-05,2]
[421011700,1776921046112,-652.27539985,6.86e-05,2]
[421011701,1776921046122,-5069.61133906,7e-05,2]
[421011703,1776921046239,-492.98298303,7e-05,2]
[421011704,1776921046280,-511.63701206,7e-05,2]
[421011706,1776921241272,300.0,6.719e-05,2]
[421011707,1776921252914,565.0,6.719e-05,3]
[421011708,1776921301127,1200.0,6.719e-05,2]
[421011709,1776921301307,300.0,6.719e-05,2]
[421011710,1776921302033,150.0,6.719e-05,2]
[421011711,1776921311011,155.0,6.719e-05,3]
[421011712,1776921311469,536.0,6.719e-05,3]
[421011713,1776921362897,492.5,0.000165,120]
[421011714,1776921366747,510.0,6.719e-05,3]
[421011715,1776921425768,484.0,6.719e-05,3]
[421011716,1776921483608,150.0,6.719e-05,2]
[421011717,1776921487266,460.0,6.719e-05,3]
[421011718,1776921517957,5190.01,6.65e-05,2]
[421011719,1776921517983,10000.01,6.65e-05,2]
[421011720,1776921518008,10000.01,6.65e-05,2]
[421011721,1776921518033,10000.01,6.65e-05,2]
[421011722,1776921518059,10000.01,6.65e-05,2]
[421011723,1776921518085,10000.01,6.65e-05,2]
[421011724,1776921518110,10000.01,6.65e-05,2]
[421011725,1776921521170,-500.00025668,6.65e-05,2]
[421011726,1776921522806,-380.42137851,6.65e-05,2]
[421011727,1776921525957,-5027.02184302,6.65e-05,2]
[421011728,1776921525995,-10000.01,6.65e-05,2]
[421011729,1776921526104,-10000.01,6.65e-05,2]
[421011730,1776921526212,-10000.01,6.65e-05,2]
[421011731,1776921526302,-216.626,6.65e-05,2]
[421011732,1776921526380,-10000.01,6.65e-05,2]
[421011733,1776921526492,-10000.01,6.65e-05,2]
[421011734,1776921527505,-10000.01,6.65e-05,2]
[421011735,1776921527611,-10000.01,6.65e-05,2]
[421011736,1776921527733,-10000.01,6.65e-05,2]
[421011737,1776921529113,-222.256,6.65e-05,2]
[421011738,1776921530515,-10000.01,6.65e-05,2]
[421011739,1776921530646,-10000.01,6.65e-05,2]
[421011740,1776921533757,-10000.01,6.65e-05,2]
[421011741,1776921533777,-10000.01,6.65e-05,2]
[421011742,1776921533798,-10000.01,6.65e-05,2]
[421011743,1776921533813,-10000.01,6.65e-05,2]
[421011744,1776921533864,-10000.01,6.65e-05,2]
[421011745,1776921534038,-10000.01,6.65e-05,2]
[421011746,1776921535767,-427.974,6.65e-05,2]
[421011747,1776921537117,-10000.01,6.65e-05,2]
[421011748,1776921537923,-500.0,6.65e-05,2]
[421011749,1776921539386,-180.69662149,6.65e-05,2]
[421011750,1776921539679,-10000.01,6.65e-05,2]
[421011751,1776921539829,-10000.01,6.65e-05,2]
[421011752,1776921539940,-10000.01,6.65e-05,2]
[421011753,1776921545676,-500.0,6.65e-05,2]
[421011754,1776921547369,-200.0,6.65e-05,2]
[421011755,1776921561013,-10000.01,6.65e-05,2]
[421011756,1776921561164,-10000.01,6.65e-05,2]
[421011757,1776921561287,-10000.01,6.65e-05,2]
[421011758,1776921571001,-151.0,6.647e-05,2]
[421011759,1776921571029,-151.0,6.647e-05,2]
[421011760,1776921571259,-9396.01,6.65e-05,2]
[421011761,1776921571318,-10000.01,6.65e-05,2]
[421011762,1776921571380,-10000.01,6.65e-05,2]
[421011763,1776921578869,-10000.01,6.65e-05,2]
[421011764,1776921578959,-10000.01,6.65e-05,2]
[421011765,1776921579077,-10000.01,6.65e-05,2]
[421011766,1776921579204,-10000.01,6.65e-05,2]
[421011767,1776921579350,-10000.01,6.65e-05,2]
[421011768,1776921579514,-10000.01,6.65e-05,2]
[421011769,1776921579626,-10000.01,6.65e-05,2]
[421011770,1776921579906,-10000.01,6.65e-05,2]
[421011771,1776921580004,-10000.01,6.65e-05,2]
[421011772,1776921583210,-10000.01,6.65e-05,2]
[421011773,1776921584969,-10000.01,6.65e-05,2]
[421011774,1776921585096,-10000.01,6.65e-05,2]
[421011775,1776921585223,-10000.01,6.65e-05,2]
[421011776,1776921585340,-10000.01,6.65e-05,2]
[421011777,1776921585445,-10000.01,6.65e-05,2]
[421011778,1776921585538,-10000.01,6.65e-05,2]
[421011779,1776921585631,-10000.01,6.65e-05,2]
[421011780,1776921585759,-10000.01,6.65e-05,2]
[421011781,1776921585826,-10000.01,6.65e-05,2]
[421011782,1776921588212,-3044.3480997,6.65e-05,2]
[421011783,1776921588236,-3911.3138006,6.65e-05,2]
[421011784,1776921595574,-437.0,6.65e-05,3]
[421011785,1776921607769,415.0,6.65e-05,3]
[421011786,1776921611592,155.0,6.65e-05,3]
[421011787,1776921633000,1401.89002,6.67e-05,2]
[421011788,1776921633076,1401.89002,6.67e-05,2]
[421011789,1776921633115,1401.89002,6.67e-05,2]
[421011790,1776921633174,1401.89002,6.67e-05,2]
[421011791,1776921633226,1401.89006,6.67e-05,2]
[421011792,1776921664196,202.74558094,6.65e-05,2]
[421011793,1776921665936,394.0,6.65e-05,3]
[421011794,1776921684426,152.0,6.653e-05,7]
[421011795,1776921684509,152.0,6.653e-05,7]
[421011796,1776921727937,375.0,6.65e-05,3]
[421011797,1776921787502,356.0,6.65e-05,3]
[421011798,1776921787596,500.0,6.62e-05,2]
[421011799,1776921906488,155.0,6.65e-05,3]
[421011800,1776921909147,338.0,6.65e-05,3]
[421011801,1776921929476,150.0,6.288e-05,2]
[421011802,1776921937339,258.62357071,6.288e-05,2]
[421011803,1776921937413,177.5,6.288e-05,2]
[421011804,1776921939990,150.0,6.288e-05,2]
[421011805,1776921946176,150.0,6.288e-05,2]
[421011806,1776921946219,150.00000001,6.288e-05,2]
[421011807,1776921946644,299.2047187,6.288e-05,2]
[421011808,1776921951155,150.0,6.288e-05,2]
[421011809,1776921954592,150.0,6.288e-05,2]
[421011810,1776921954657,150.0,6.637e-05,2]
[421011811,1776921954834,150.0,6.288e-05,2]
[421011812,1776921954865,150.0,6.375e-05,2]
[421011813,1776921954932,150.0,6.462e-05,2]
[421011814,1776921955004,150.0,6.55e-05,2]
[421011815,1776921955071,150.0,6.637e-05,2]
[421011816,1776921966984,321.0,6.65e-05,3]
[421011817,1776921977676,200.0,6.4e-05,2]
[421011818,1776922027162,305.0,6.65e-05,3]
[421011819,1776922092666,290.0,6.65e-05,3]
[421011820,1776922096959,1942.5363785,6.65e-05,2]
[421011821,1776922122238,500.0,6.61e-05,2]
[421011822,1776922141013,9500.01,6.62e-05,2]
[421011823,1776922141040,10000.01,6.62e-05,2]
[421011824,1776922141066,10000.01,6.62e-05,2]
[421011825,1776922141093,10000.01,6.62e-05,2]
[421011826,1776922141120,10000.01,6.62e-05,2]
[421011827,1776922141147,10000.01,6.62e-05,2]
[421011828,1776922141175,10000.01,6.62e-05,2]
[421011829,1776922141200,10000.01,6.62e-05,2]
[421011830,1776922141227,10000.01,6.62e-05,2]
[421011831,1776922141252,10000.01,6.62e-05,2]
[421011832,1776922141279,5000.01,6.62e-05,2]
[421011833,1776922141306,5000.01,6.62e-05,2]
[421011834,1776922141332,5000.01,6.62e-05,2]
[421011835,1776922141358,5000.01,6.62e-05,2]
[421011836,1776922141384,5000.01,6.62e-05,2]
[421011837,1776922141410,5000.01,6.62e-05,2]
[421011838,1776922141437,5000.01,6.62e-05,2]
[421011839,1776922141463,5000.01,6.62e-05,2]
[421011840,1776922141494,5000.01,6.62e-05,2]
[421011841,1776922141520,5000.01,6.62e-05,2]
[421011842,1776922201714,1200.0,6.619e-05,2]
[421011843,1776922202051,150.0,6.619e-05,2]
[421011844,1776922202895,300.0,6.619e-05,2]
[421011845,1776922210459,314.0,6.62e-05,3]
[421011846,1776922210833,155.0,6.62e-05,3]
[421011849,1776922234525,-68469.00371201,6.62e-05,2]
[421011850,1776922234587,-1410.02104493,6.62e-05,2]
[421011851,1776922234598,-314.57995572,6.62e-05,2]
[421011852,1776922234609,-448.42004428,6.62e-05,2]
[421011853,1776922236735,500.0,6.619e-05,2]
[421011854,1776922236769,592.56646407,6.619e-05,2]
[421011859,1776922238190,-259.19399892,6.62e-05,2]
[421011860,1776922238252,-76165.53357054,6.62e-05,2]
[421011861,1776922238265,-48993.48432967,6.62e-05,2]
[421011862,1776922238277,-829.67010334,6.62e-05,2]
[421011863,1776922238359,-793.66649967,6.62e-05,2]
[421011889,1776922240085,-876.35447546,6.62e-05,2]
[421011890,1776922240195,-3899.45,6.62e-05,2]
[421011891,1776922240677,-420.87029912,6.62e-05,2]
[421011892,1776922242734,166.47312793,6.619e-05,2]
[421011895,1776922242775,404.08748229,6.619e-05,2]
[421011903,1776922242825,542.63463508,6.619e-05,2]
[421011906,1776922242857,179.35140335,6.619e-05,2]
[421011910,1776922242889,308.03821676,6.619e-05,2]
[421011911,1776922242925,500.0,6.619e-05,2]
[421011912,1776922243041,259.30236381,6.619e-05,2]
[421011913,1776922243138,500.0,6.619e-05,2]
[421011914,1776922243250,500.0,6.619e-05,2]
[421011915,1776922243377,500.0,6.619e-05,2]
[421011916,1776922243520,500.0,6.619e-05,2]
[421011917,1776922243540,-152554.14256634,6.62e-05,2]
[421011918,1776922243554,-152.0,6.659e-05,7]
[421011919,1776922243564,-152.0,6.659e-05,7]
[421011920,1776922243574,-1000.0,6.67e-05,2]
[421011921,1776922243584,-1107.58985267,6.67e-05,2]
[421011922,1776922243594,-578.20924308,6.71e-05,2]
[421011923,1776922243604,-500.0,6.71e-05,2]
[421011924,1776922243614,-250.0,6.71e-05,2]
[421011925,1776922243624,-150.0,6.724e-05,2]
[421011926,1776922243634,-564.01000622,6.765e-05,2]
[421011927,1776922243643,-9784.6636558,6.784e-05,2]
[421011928,1776922243652,-1000.0,6.799e-05,2]
[421011929,1776922243662,-150.0,6.812e-05,2]
[421011930,1776922243671,-760.1,6.822e-05,2]
[421011931,1776922243681,-500.0,6.849e-05,2]
[421011932,1776922243690,-6005.40428426,6.856e-05,2]
[421011933,1776922243700,-151.0,6.856e-05,2]
[421011934,1776922243709,-154.22503535,6.856e-05,2]
[421011935,1776922243719,-531.34,6.859e-05,2]
[421011936,1776922243728,-500.0,6.859e-05,2]
[421011937,1776922243737,-9999.99,6.86e-05,2]
[421011938,1776922243748,-9999.99,6.86e-05,2]
[421011939,1776922243758,-150.99,6.86e-05,2]
[421011940,1776922243767,-4999.99,6.86e-05,2]
[421011941,1776922243776,-9377.81,6.86e-05,2]
[421011942,1776922243786,-5480.32,6.86e-05,2]
[421011943,1776922243795,-499.99,6.86e-05,2]
[421011944,1776922243806,-9999.99,6.86e-05,2]
[421011945,1776922243816,-999.99,6.86e-05,2]
[421011946,1776922243825,-40047.68,6.86e-05,2]
[421011947,1776922243835,-1573.83,6.86e-05,2]
[421011948,1776922243844,-299.99,6.86e-05,2]
[421011949,1776922243854,-515.90902174,6.86e-05,2]
[421011950,1776922243864,-150.0,6.899e-05,2]
[421011951,1776922243874,-717.0,6.9e-05,5]
[421011952,1776922243883,-500.0,6.904e-05,2]
[421011953,1776922243893,-2358.498,6.928e-05,2]
[421011954,1776922243903,-176.538,6.928e-05,2]
[421011955,1776922243913,-179.1,6.928e-05,2]
[421011956,1776922243923,-2474.0,6.951e-05,2]
[421011957,1776922243932,-6032.0,6.951e-05,2]
[421011958,1776922243942,-3530.0,6.951e-05,2]
[421011959,1776922243952,-500.0,6.959e-05,2]
[421011960,1776922243962,-1000.0,6.97e-05,2]
[421011961,1776922243972,-500.199004,6.97e-05,2]
[421011962,1776922243981,-500.45135727,6.973e-05,2]
[421011963,1776922243991,-523.68401068,6.973e-05,2]
[421011964,1776922244001,-500.0,6.973e-05,2]
[421011965,1776922244010,-504.30502229,6.973e-05,2]
[421011966,1776922244019,-508.52368602,6.973e-05,2]
[421011967,1776922244029,-500.0,6.973e-05,2]
[421011968,1776922244039,-572.09413596,6.973e-05,2]
[421011969,1776922244049,-500.0,6.973e-05,2]
[421011970,1776922244060,-500.0,6.973e-05,2]
[421011971,1776922244070,-500.0,6.973e-05,2]
[421011972,1776922244080,-501.29040888,6.973e-05,2]
[421011973,1776922244090,-312.2531809,6.973e-05,2]
[421011974,1776922244099,-500.0,6.973e-05,2]
[421011975,1776922244109,-150.0,6.986e-05,2]
[421011976,1776922244119,-150.0,6.986e-05,2]
[421011977,1776922244128,-150.0,6.986e-05,2]
[421011978,1776922244137,-150.0,6.986e-05,2]
[421011979,1776922244146,-250.0,6.986e-05,2]
[421011980,1776922244156,-151.0,6.987e-05,2]
[421011981,1776922244166,-84956.6259941,6.991e-05,2]
[421011982,1776922244175,-3270.1293707,6.991e-05,2]
[421011983,1776922244185,-3380.6039849,6.991e-05,2]
[421011984,1776922244194,-153.84497306,6.991e-05,2]
[421011985,1776922244204,-151.196882,6.991e-05,2]
[421011986,1776922244213,-394.453362,6.991e-05,2]
[421011987,1776922244223,-394.453362,6.991e-05,2]
[421011988,1776922244234,-394.453362,6.991e-05,2]
[421011989,1776922244244,-394.453362,6.991e-05,2]
[421011990,1776922244254,-151.0,6.995e-05,2]
[421011991,1776922244264,-241.468319,6.995e-05,2]
[421011992,1776922244274,-512.277832,6.995e-05,2]
[421011993,1776922244284,-512.277832,6.995e-05,2]
[421011994,1776922244293,-512.277832,6.995e-05,2]
[421011995,1776922244303,-512.277832,6.995e-05,2]
[421011996,1776922244312,-200.0,6.996e-05,2]
[421011997,1776922244321,-721.12765535,6.996e-05,2]
[421011998,1776922244331,-1428.38747117,6.996e-05,2]
[421011999,1776922244341,-153.45764577,6.997e-05,2]
[421012000,1776922244350,-162.57,6.999e-05,2]
[421012001,1776922244360,-1000.0,6.999e-05,2]
[421012002,1776922244369,-1000.0,6.999e-05,2]
[421012003,1776922244378,-1000.0,6.999e-05,2]
[421012004,1776922244390,-1000.0,6.999e-05,2]
[421012005,1776922244400,-1000.0,6.999e-05,2]
[421012006,1776922244409,-1000.0,6.999e-05,2]
[421012007,1776922244419,-1000.0,6.999e-05,2]
[421012008,1776922244428,-1000.0,6.999e-05,2]
[421012009,1776922244438,-1000.0,6.999e-05,2]
[421012010,1776922244447,-1000.0,6.999e-05,2]
[421012011,1776922244458,-1000.0,6.999e-05,2]
[421012012,1776922244468,-1000.0,6.999e-05,2]
[421012013,1776922244478,-1000.0,6.999e-05,2]
[421012014,1776922244488,-1000.0,6.999e-05,2]
[421012015,1776922244498,-1000.0,6.999e-05,2]
[421012016,1776922244507,-1000.0,6.999e-05,2]
[421012017,1776922244516,-1000.0,6.999e-05,2]
[421012018,1776922244526,-1000.0,6.999e-05,2]
[421012019,1776922244536,-1000.0,6.999e-05,2]
[421012020,1776922244545,-1000.0,6.999e-05,2]
[421012021,1776922244554,-150.0,6.999e-05,2]
[421012022,1776922244564,-732.0,7e-05,5]
[421012023,1776922244575,-45358.79531601,7e-05,2]
[421012024,1776922244584,-67372.95514048,7e-05,2]
[421012026,1776922247154,-1454.0,7e-05,2]
[421012027,1776922247251,-389.985,7e-05,2]
[421012028,1776922247334,500.0,6.619e-05,2]
[421012029,1776922247388,403.16626739,6.619e-05,2]
[421012030,1776922247928,-262.1590022,7e-05,2]
[421012031,1776922247967,-881.20337013,7e-05,2]
[421012032,1776922247979,-9430.35816085,7e-05,2]
[421012033,1776922248220,-1971.91147274,7e-05,2]
[421012034,1776922248241,-15104.579117,7e-05,2]
[421012035,1776922251300,175.54167353,6.619e-05,2]
[421012036,1776922254946,612.06241014,6.619e-05,2]
[421012037,1776922255004,612.06241014,6.619e-05,2]
[421012038,1776922255048,612.06241014,6.619e-05,2]
[421012039,1776922255088,612.06241014,6.619e-05,2]
[421012040,1776922255128,612.06241014,6.619e-05,2]
[421012041,1776922255181,612.06241014,6.619e-05,2]
[421012042,1776922255220,612.06241014,6.619e-05,2]
[421012043,1776922255267,612.06241014,6.619e-05,2]
[421012044,1776922255306,612.06241014,6.619e-05,2]
[421012045,1776922255348,612.06241014,6.619e-05,2]
[421012046,1776922255386,612.06241014,6.619e-05,2]
[421012047,1776922255429,612.06241014,6.619e-05,2]
[421012048,1776922255481,612.06241014,6.619e-05,2]
[421012049,1776922255525,612.06241014,6.619e-05,2]
[421012050,1776922255565,612.06241014,6.619e-05,2]
[421012051,1776922255609,612.06241014,6.619e-05,2]
[421012052,1776922255658,31.46976423,6.619e-05,2]
[421012053,1776922255685,580.59264591,6.619e-05,2]
[421012054,1776922255726,612.06241014,6.619e-05,2]
[421012055,1776922255774,612.06241014,6.619e-05,2]
[421012056,1776922255814,612.06241014,6.619e-05,2]
[421012057,1776922255852,612.06241014,6.619e-05,2]
[421012058,1776922255892,612.06241014,6.619e-05,2]
[421012059,1776922255945,612.06241014,6.619e-05,2]
[421012060,1776922255986,612.06241014,6.619e-05,2]
[421012061,1776922256039,612.06241014,6.619e-05,2]
[421012062,1776922256076,612.06241014,6.619e-05,2]
[421012063,1776922256116,612.06241014,6.619e-05,2]
[421012064,1776922256182,612.06241014,6.619e-05,2]
[421012065,1776922256221,612.06241014,6.619e-05,2]
[421012066,1776922256853,612.06241014,6.619e-05,2]
[421012067,1776922256891,612.06241014,6.619e-05,2]
[421012068,1776922256925,612.06241014,6.619e-05,2]
[421012069,1776922256966,238.48120199,6.619e-05,2]
[421012070,1776922256992,373.58120815,6.619e-05,2]
[421012071,1776922257030,612.06241014,6.619e-05,2]
[421012072,1776922257074,612.06241014,6.619e-05,2]
[421012073,1776922257109,612.06241014,6.619e-05,2]
[421012074,1776922259662,612.06241014,6.619e-05,2]
[421012075,1776922259711,612.06241014,6.619e-05,2]
[421012076,1776922259763,612.06241014,6.619e-05,2]
[421012077,1776922259814,612.06241014,6.619e-05,2]
[421012078,1776922259851,612.06241014,6.619e-05,2]
[421012079,1776922259891,612.06241014,6.619e-05,2]
[421012080,1776922259936,612.06241014,6.619e-05,2]
[421012081,1776922259978,612.06241014,6.619e-05,2]
[421012082,1776922260036,612.06241014,6.619e-05,2]
[421012083,1776922260097,612.06241014,6.619e-05,2]
[421012084,1776922260139,612.06241014,6.619e-05,2]
[421012085,1776922260181,612.06241014,6.619e-05,2]
[421012086,1776922260244,612.06241014,6.619e-05,2]
[421012087,1776922265196,650.82902535,6.619e-05,2]
[421012088,1776922265231,500.09064536,6.619e-05,2]
[421012089,1776922265270,650.82902535,6.619e-05,2]
[421012090,1776922265304,500.0,6.619e-05,2]
[421012091,1776922265343,650.82902535,6.619e-05,2]
[421012092,1776922265388,650.82902535,6.619e-05,2]
[421012093,1776922265429,650.82902535,6.619e-05,2]
[421012094,1776922265470,650.82902535,6.619e-05,2]
[421012095,1776922265516,650.82902535,6.619e-05,2]
[421012096,1776922265555,650.82902535,6.619e-05,2]
[421012097,1776922265600,650.82902535,6.619e-05,2]
[421012098,1776922265637,650.82902535,6.619e-05,2]
[421012099,1776922265675,650.82902535,6.619e-05,2]
[421012100,1776922265712,650.82902535,6.619e-05,2]
[421012101,1776922265754,650.82902535,6.619e-05,2]
[421012102,1776922265806,539.14202509,6.619e-05,2]
[421012103,1776922265834,111.68700026,6.619e-05,2]
[421012104,1776922265881,650.82902535,6.619e-05,2]
[421012105,1776922265934,650.82902535,6.619e-05,2]
[421012106,1776922265977,650.82902535,6.619e-05,2]
[421012107,1776922266011,650.82902535,6.619e-05,2]
[421012108,1776922266052,650.82902535,6.619e-05,2]
[421012109,1776922266534,650.82902535,6.619e-05,2]
[421012110,1776922266598,650.82902535,6.619e-05,2]
[421012111,1776922266632,650.82902535,6.619e-05,2]
[421012112,1776922266670,650.82902535,6.619e-05,2]
[421012113,1776922266704,650.82902535,6.619e-05,2]
[421012114,1776922266738,650.82902535,6.619e-05,2]
[421012115,1776922266781,650.82902535,6.619e-05,2]
[421012116,1776922266820,650.82902535,6.619e-05,2]
[421012117,1776922266872,650.82902535,6.619e-05,2]
[421012118,1776922266922,650.82902535,6.619e-05,2]
[421012119,1776922266992,125.88761949,6.619e-05,2]
[421012120,1776922267018,524.94140586,6.619e-05,2]
[421012121,1776922267112,650.82902535,6.619e-05,2]
[421012122,1776922267158,650.82902535,6.619e-05,2]
[421012123,1776922267219,650.82902535,6.619e-05,2]
[421012124,1776922267259,650.82902535,6.619e-05,2]
[421012125,1776922267305,650.82902535,6.619e-05,2]
[421012126,1776922267360,650.82902535,6.619e-05,2]
[421012127,1776922267396,650.82902535,6.619e-05,2]
[421012128,1776922267432,650.82902535,6.619e-05,2]
[421012129,1776922267486,650.82902535,6.619e-05,2]
[421012130,1776922267522,650.82902535,6.619e-05,2]
[421012131,1776922267603,650.82902535,6.619e-05,2]
[421012132,1776922267666,650.82902535,6.619e-05,2]
[421012133,1776922267703,650.82902535,6.619e-05,2]
[421012134,1776922267738,650.82902535,6.619e-05,2]
[421012135,1776922267799,363.46223924,6.619e-05,3]
[421012136,1776922267823,42.53776076,6.619e-05,3]
[421012137,1776922274461,154.0,6.619e-05,3]
[421012138,1776922284717,650.82902535,6.619e-05,2]
[421012139,1776922284757,650.82902535,6.619e-05,2]
[421012140,1776922286108,500.0,6.52e-05,2]
[421012141,1776922308825,3044.3519493,6.52e-05,2]
[421012142,1776922308849,5000.01,6.52e-05,2]
[421012143,1776922308873,5000.01,6.52e-05,2]
[421012144,1776922308897,5000.01,6.52e-05,2]
[421012145,1776922308920,5000.01,6.52e-05,2]
[421012146,1776922308943,5000.01,6.52e-05,2]
[421012147,1776922308967,5000.01,6.52e-05,2]
[421012148,1776922308990,10000.01,6.52e-05,2]
[421012149,1776922309015,10000.01,6.52e-05,2]
[421012150,1776922309039,10000.01,6.52e-05,2]
[421012151,1776922309063,10000.01,6.52e-05,2]
[421012152,1776922309086,10000.01,6.52e-05,2]
[421012153,1776922309111,10000.01,6.52e-05,2]
[421012154,1776922312517,-2322.67411267,6.52e-05,2]
[421012155,1776922312638,-5000.01,6.52e-05,2]
[421012156,1776922312736,-5000.01,6.52e-05,2]
[421012157,1776922312837,-5000.01,6.52e-05,2]
[421012158,1776922321465,300.0,6.519e-05,2]
[421012159,1776922327177,684.0,6.52e-05,3]
[421012160,1776922371658,166.0,6.52e-05,3]
[421012161,1776922383810,150.0,6.519e-05,2]
[421012162,1776922387400,679.0,6.52e-05,3]
[421012163,1776922397535,300.0,6.519e-05,2]
[421012164,1776922399501,154.0,6.52e-05,3]
[421012165,1776922441192,300.0,6.519e-05,2]
[421012166,1776922451628,645.0,6.519e-05,3]
[421012168,1776922463796,154.0,6.519e-05,3]
[421012169,1776922489703,151.0,6.33e-05,2]
[421012170,1776922501131,1200.0,6.519e-05,2]
[421012171,1776922501320,117.01,6.519e-05,2]
[421012172,1776922501343,182.99,6.519e-05,2]
[421012173,1776922501612,300.0,6.519e-05,2]
[421012174,1776922508219,613.0,6.33e-05,3]
[421012175,1776922508256,157.0,6.33e-05,3]
[421012176,1776922513402,154.0,6.33e-05,3]
[421012178,1776922561991,150.0,6.519e-05,2]
[421012179,1776922566834,582.0,6.33e-05,3]
[421012180,1776922573166,154.0,6.33e-05,3]
[421012182,1776922608529,2707.02,6e-05,2]
[421012183,1776922608551,5000.01,6e-05,2]
[421012184,1776922608577,5000.01,6e-05,2]
[421012185,1776922608598,5000.01,6e-05,2]
[421012186,1776922608620,5000.01,6e-05,2]
[421012187,1776922608642,1352.63367506,6e-05,2]
[421012188,1776922614660,-9186.51362032,6.52e-05,2]
[421012189,1776922614683,-10000.01,6.52e-05,2]
[421012190,1776922614698,-10000.01,6.52e-05,2]
[421012191,1776922615544,-10000.01,6.52e-05,2]
[421012192,1776922615636,-10000.01,6.52e-05,2]
[421012193,1776922615747,-10000.01,6.52e-05,2]
[421012194,1776922615843,-10000.01,6.52e-05,2]
[421012195,1776922615960,-10000.01,6.52e-05,2]
[421012196,1776922616037,-3647.37632494,6.52e-05,2]
[421012197,1776922616088,-10000.01,6.52e-05,2]
[421012198,1776922616173,-5000.01,6.52e-05,2]
[421012199,1776922616199,-10000.01,6.52e-05,2]
[421012200,1776922616326,-4383.61609277,6.52e-05,2]
[421012201,1776922625458,-152.0,6.576e-05,7]
[421012202,1776922628918,571.0,6.52e-05,3]
[421012203,1776922629519,500.0,6.42e-05,2]
[421012204,1776922635811,154.0,6.52e-05,3]
[421012205,1776922639923,-578.20924308,6.639e-05,2]
[421012206,1776922639953,-200.0,6.639e-05,2]
[421012207,1776922639983,-209.40437684,6.639e-05,2]
[421012208,1776922640012,-500.0,6.639e-05,2]
[421012209,1776922640041,-472.47402962,6.639e-05,2]
[421012210,1776922640984,743.50770149,6.639e-05,2]
[421012211,1776922642321,151.0,6.639e-05,2]
[421012212,1776922646159,185.32699943,6.639e-05,2]
[421012213,1776922646181,535.80065592,6.639e-05,2]
[421012214,1776922648999,174.61919141,6.639e-05,2]
[421012215,1776922652586,151.0,6.639e-05,2]
[421012216,1776922655204,1000.0,6.639e-05,2]
[421012217,1776922658006,1000.0,6.639e-05,2]
[421012218,1776922663885,151.4083656,6.639e-05,2]
[421012220,1776922709336,166.0,6.639e-05,3]
[421012221,1776922711783,543.0,6.639e-05,3]
[421012222,1776922719992,155.0,6.639e-05,3]
[421012223,1776922720295,152.0,6.563e-05,7]
[421012224,1776922746963,516.0,6.563e-05,3]
[421012225,1776922774117,151.0,6.348e-05,2]
[421012226,1776922811660,490.0,6.348e-05,3]